bitfinex-derivatives/quotes_ETHF0:USTF0_20241013
["timestamp","ask_amount","ask_price","bid_price","bid_amount"]
[1728810475108,0.61917953,2466.5,2466.4,3.329702]
[1728810475414,0.61917953,2466.5,2466.4,3.10531502]
[1728810476106,0.61917959,2466.5,2466.4,3.33023837]
[1728810479016,0.61917959,2466.5,2466.4,3.10585085]
[1728810479206,0.61917959,2466.5,2466.4,3.33024793]
[1728810479409,0.61917959,2466.5,2466.4,3.45704729]
[1728810479604,0.4163,2466.5,2466.4,1.27919644]
[1728810479815,2.44216931,2466.5,2466.4,1.27919644]
[1728810480705,2.44217466,2466.5,2466.4,1.05479936]
[1728810481210,2.44217466,2466.5,2466.4,0.928]
[1728810484311,2.4425052,2466.5,2466.4,0.928]
[1728810486716,4.32845774,2466.5,2466.4,0.928]
[1728810487320,9.06917005,2466.5,2466.4,0.928]
[1728810488017,9.06917005,2466.5,2466.4,1.05479947]
[1728810488621,9.06917005,2466.5,2466.4,7.32729847]
[1728810488622,4.94359171,2466.5,2466.4,7.32729847]
[1728810488916,4.94359171,2466.5,2466.4,12.5045501]
[1728810488917,2.02624502,2466.5,2466.4,12.5045501]
[1728810489129,2.02624502,2466.5,2466.4,12.63132653]
[1728810489419,2.02562789,2466.5,2466.4,12.12873753]
[1728810489616,3.18178933,2466.8,2466.6,0.40547]
[1728810489816,3.18178933,2466.8,2466.7,2.44894776]
[1728810490011,3.38462878,2466.8,2466.7,2.87134776]
[1728810490213,5.00461274,2466.8,2466.7,2.74457133]
[1728810490414,1.82282341,2466.8,2466.7,2.87134575]
[1728810491320,1.82282341,2466.8,2466.7,2.5202]
[1728810491516,1.82282341,2466.8,2466.7,3.0633]
[1728810491723,2.02566286,2466.8,2466.7,3.0633]
[1728810493619,2.02386147,2466.8,2466.7,3.0633]
[1728810494828,0.20284362,2466.8,2466.7,3.0633]
[1728810498227,0.20284435,2466.8,2466.7,3.0633]
[1728810498927,2.72647792,2466.9,2466.7,3.0633]
[1728810499225,0.20284435,2466.8,2466.7,1.7533]
[1728810499421,1.58833555,2466.8,2466.7,1.7533]
[1728810499625,1.7911799,2466.8,2466.7,1.7533]
[1728810500329,1.7911799,2466.8,2466.7,3.0633]
[1728810501936,5.20473875,2466.8,2466.7,3.0633]
[1728810502631,2.02294942,2466.8,2466.7,3.0633]
[1728810502823,3.58721933,2466.9,2466.7,3.0633]
[1728810503028,2.02287268,2466.8,2466.7,3.0633]
[1728810505532,3.58721933,2466.9,2466.7,3.0633]
[1728810505727,2.02270556,2466.8,2466.7,3.0633]
[1728810506126,2.44140556,2466.8,2466.7,3.0633]
[1728810507739,2.44132658,2466.8,2466.7,3.0633]
[1728810509834,2.00645197,2466.8,2466.7,3.0633]
[1728810513244,2.20929853,2466.8,2466.7,3.0633]
[1728810514743,2.00645197,2466.8,2466.7,3.0633]
[1728810516945,2.2092974,2466.8,2466.7,3.0633]
[1728810517141,2.20929739,2466.8,2466.7,3.0633]
[1728810519645,1.58775197,2466.8,2466.7,3.46876]
[1728810520049,1.05900869,2466.8,2466.7,3.46876]
[1728810522847,1.58775197,2466.8,2466.7,3.46876]
[1728810524949,0.20283749,2466.8,2466.7,1.7533]
[1728810525242,3.38462682,2466.8,2466.7,3.0633]
[1728810525445,5.62555836,2466.8,2466.7,3.0633]
[1728810526646,5.6256669,2466.8,2466.7,3.0633]
[1728810526850,5.6256669,2466.8,2466.7,2.949]
[1728810527555,3.80393409,2466.8,2466.7,2.949]
[1728810527748,8.54071933,2466.8,2466.7,2.949]
[1728810528152,5.6256669,2466.8,2466.7,2.949]
[1728810528349,8.12070949,2466.8,2466.7,2.949]
[1728810528550,5.2063669,2466.8,2466.7,3.35446]
[1728810528751,5.00352214,2466.8,2466.7,2.949]
[1728810528950,5.2063669,2466.8,2466.7,2.949]
[1728810529248,5.2063669,2466.8,2466.7,3.35446]
[1728810530356,5.2063669,2466.8,2466.7,3.46876]
[1728810530946,5.2063669,2466.8,2466.7,3.0633]
[1728810531354,8.12166273,2466.8,2466.7,3.0633]
[1728810531952,2.32257801,2466.8,2466.7,3.46876]
[1728810532455,2.11973325,2466.8,2466.7,3.46876]
[1728810533358,2.11973325,2466.8,2466.7,4.53365306]
[1728810534350,0.20284476,2466.8,2466.7,4.53365306]
[1728810534551,2.85251132,2466.9,2466.7,4.53365306]
[1728810534752,0.20284476,2466.8,2466.7,3.22365306]
[1728810535062,2.85251132,2466.9,2466.7,3.22365306]
[1728810535362,2.64966656,2466.9,2466.8,1.31]
[1728810535858,4.67622879,2466.9,2466.8,1.31]
[1728810536055,4.67623019,2466.9,2466.8,1.31]
[1728810537154,4.67623019,2466.9,2466.8,1.5146]
[1728810537355,4.67623019,2466.9,2466.8,1.7385]
[1728810539954,4.94448324,2466.9,2466.8,1.7385]
[1728810540147,8.65376158,2466.9,2466.8,1.7385]
[1728810540554,8.6535848,2466.9,2466.8,1.7385]
[1728810547062,4.67788561,2466.9,2466.8,1.7385]
[1728810548869,4.65898143,2466.9,2466.8,1.7385]
[1728810553669,4.65899425,2466.9,2466.8,1.7385]
[1728810554964,4.89489469,2466.9,2466.8,1.7385]
[1728810555165,4.89489469,2466.9,2466.8,1.8528]
[1728810558371,4.89497034,2466.9,2466.8,1.8528]
[1728810559679,4.89497034,2466.9,2466.8,0.5428]
[1728810562073,2.32451933,2466.9,2466.8,3.26169534]
[1728810563072,2.32452034,2466.9,2466.8,3.26172214]
[1728810564279,2.32452034,2466.9,2466.8,3.61280191]
[1728810564677,2.32452034,2466.9,2466.8,4.92280191]
[1728810565984,2.3245171,2466.9,2466.8,4.92280787]
[1728810566280,2.3245171,2466.9,2466.8,4.9771681]
[1728810566588,2.3245171,2466.9,2466.8,4.92280657]
[1728810567985,2.32451665,2466.9,2466.8,4.92283575]
[1728810568677,2.32451665,2466.9,2466.8,5.32827575]
[1728810569382,2.32451665,2466.9,2466.8,4.92283575]
[1728810570182,2.32451665,2466.9,2466.8,4.79607681]
[1728810570388,2.32451665,2466.9,2466.8,4.92284853]
[1728810572687,2.32451656,2466.9,2466.8,4.9229075]
[1728810574488,2.32451656,2466.9,2466.8,4.57181625]
[1728810574682,2.32451656,2466.9,2466.8,4.9221347]
[1728810577292,5.06596374,2466.9,2466.8,2.95337985]
[1728810577591,5.87266374,2466.9,2466.8,1.95787941]
[1728810577987,5.87266374,2466.9,2466.8,3.26787941]
[1728810578191,5.87266374,2466.9,2466.8,3.26788456]
[1728810578491,5.87266374,2466.9,2466.8,3.49143748]
[1728810581190,5.87266374,2466.9,2466.8,3.26788457]
[1728810581392,4.66054374,2466.9,2466.8,3.26788457]
[1728810581990,4.66049521,2466.9,2466.8,3.26788457]
[1728810582192,5.06591521,2466.9,2466.8,1.83110984]
[1728810582388,4.66049521,2466.9,2466.8,3.26788165]
[1728810584193,2.32513485,2466.9,2466.8,4.92216362]
[1728810585498,0.20283992,2466.9,2466.8,4.92216362]
[1728810585702,2.12225561,2466.9,2466.8,4.92216362]
[1728810585894,2.32509553,2466.9,2466.8,4.92216362]
[1728810586100,2.32509553,2466.9,2466.8,5.32760362]
[1728810586399,2.32509553,2466.9,2466.8,4.97727889]
[1728810586799,2.32509903,2466.9,2466.8,4.97726728]
[1728810588906,2.32509903,2466.9,2466.8,4.57182728]
[1728810589104,0.20284342,2466.9,2466.8,4.57182728]
[1728810589290,0.20284342,2466.9,2466.8,4.0397682]
[1728810589496,2.12259605,2466.9,2466.8,4.57182728]
[1728810589805,2.32543947,2466.9,2466.8,4.57182728]
[1728810590796,0.20284342,2466.9,2466.8,4.57182728]
[1728810591307,2.12253694,2466.9,2466.8,2.97503653]
[1728810591508,2.32538036,2466.9,2466.8,2.97503653]
[1728810591803,0.20284342,2466.9,2466.8,2.97503653]
[1728810592203,2.65210267,2466.9,2466.8,1.8528]
[1728810592401,4.66068943,2466.9,2466.8,1.8528]
[1728810593505,4.66068943,2466.9,2466.8,2.20324427]
[1728810594204,4.66068943,2466.9,2466.8,1.8528]
[1728810594398,4.66068943,2466.9,2466.8,2.20324427]
[1728810594707,4.66068943,2466.9,2466.8,3.14113674]
[1728810595006,4.66068943,2466.9,2466.8,3.26791663]
[1728810599208,2.32531085,2466.9,2466.8,4.92899925]
[1728810600710,2.32531,2466.9,2466.8,4.92899805]
[1728810600906,2.32531,2466.9,2466.8,4.80221816]
[1728810601113,2.32531,2466.9,2466.8,4.57855219]
[1728810604319,0.20284054,2466.9,2466.8,2.98431235]
[1728810605902,0.20284054,2466.9,2466.8,3.11108733]
[1728810607615,0.20284054,2466.9,2466.8,3.51652733]
[1728810608219,0.20284054,2466.9,2466.8,3.11108733]
[1728810608622,0.20284054,2466.9,2466.8,3.1110873]
[1728810608815,0.20284054,2466.9,2466.8,3.33469769]
[1728810610315,0.20284054,2466.9,2466.8,4.39770781]
[1728810612224,0.20284054,2466.9,2466.8,4.27090558]
[1728810612524,0.20284054,2466.9,2466.8,4.39766425]
[1728810613721,2.51066743,2467.0,2466.8,3.2661519]
[1728810613911,2.51066743,2467.0,2466.9,3.56932087]
[1728810614117,2.71350721,2467.0,2466.9,3.56932087]
[1728810614315,2.71350721,2467.0,2466.9,3.96462087]
[1728810615528,2.71350721,2467.0,2466.9,4.40022087]
[1728810615729,2.71350721,2467.0,2466.9,4.50692087]
[1728810615924,2.71350721,2467.0,2466.9,3.65420258]
[1728810616231,2.71350721,2467.0,2466.9,4.15652785]
[1728810616426,2.71350721,2467.0,2466.9,4.00455812]
[1728810616632,2.71350721,2467.0,2466.9,4.50687942]
[1728810617019,2.71350721,2467.0,2466.9,4.00455812]
[1728810617431,0.59103978,2467.0,2466.9,1.28795554]
[1728810618129,0.99644978,2467.0,2466.9,1.28795554]
[1728810618524,0.99645058,2467.0,2466.9,1.28795554]
[1728810619620,0.99645058,2467.0,2466.9,2.59794837]
[1728810620330,0.99645058,2467.0,2466.9,3.66228871]
[1728810622828,0.99645058,2467.0,2466.9,2.35228871]
[1728810623026,0.99645066,2467.0,2466.9,2.35228871]
[1728810623232,0.99645064,2467.0,2466.9,2.35228389]
[1728810624632,0.99645064,2467.0,2466.9,1.95698389]
[1728810625930,0.99645171,2467.0,2466.9,1.95698389]
[1728810627027,5.63131327,2467.0,2466.9,0.5423]
[1728810628140,5.63132491,2467.0,2466.9,0.5423]
[1728810629428,5.63132491,2467.0,2466.9,1.8523]
[1728810629429,2.97922224,2467.0,2466.9,1.8523]
[1728810631033,2.97922224,2467.0,2466.9,0.5423]
[1728810631435,8.34282224,2467.0,2466.9,0.5423]
[1728810631639,20.69772761,2467.0,2466.9,0.5423]
[1728810631841,17.51520441,2467.0,2466.9,0.5423]
[1728810632038,21.22814815,2467.0,2466.9,0.5423]
[1728810633235,17.51520441,2467.0,2466.9,0.5423]
[1728810636238,20.69589742,2467.0,2466.9,0.5423]
[1728810637036,23.90369742,2467.0,2466.9,0.5423]
[1728810637438,17.55062224,2467.0,2466.9,0.5423]
[1728810637633,17.54859257,2467.0,2466.9,0.5423]
[1728810639036,14.34079257,2467.0,2466.9,0.5423]
[1728810639242,17.54859257,2467.0,2466.9,0.5423]
[1728810640235,16.23859257,2467.0,2466.9,0.5423]
[1728810640443,11.54859257,2467.0,2466.9,0.5423]
[1728810640742,7.49499257,2467.0,2466.9,0.5423]
[1728810640943,11.54859257,2467.0,2466.9,0.5423]
[1728810641133,7.49499257,2467.0,2466.9,0.5423]
[1728810642133,11.54859257,2467.0,2466.9,0.5423]
[1728810642440,11.54816074,2467.0,2466.9,0.5423]
[1728810646053,6.18456074,2467.0,2466.9,1.8523]
[1728810647147,6.1843458,2467.0,2466.9,1.8523]
[1728810647447,5.7961458,2467.0,2466.9,1.8523]
[1728810648946,8.44569968,2467.0,2466.9,1.8523]
[1728810649744,8.04028968,2467.0,2466.9,1.8523]
[1728810651657,8.04039897,2467.0,2466.9,1.8523]
[1728810652555,3.41064659,2467.0,2466.9,1.8523]
[1728810653658,3.81605659,2467.0,2466.9,1.8523]
[1728810655352,5.12605659,2467.0,2466.9,1.8523]
[1728810655551,9.75590951,2467.0,2466.9,1.8523]
[1728810656047,9.75590951,2467.0,2466.9,0.5423]
[1728810656460,9.74834337,2467.0,2466.9,0.5423]
[1728810657254,10.59414337,2467.0,2466.9,0.5423]
[1728810657456,7.94458949,2467.0,2466.9,0.5423]
[1728810660760,7.9446252,2467.0,2466.9,0.5423]
[1728810664361,5.76901,2467.0,2466.9,0.5423]
[1728810664662,7.94477566,2467.0,2466.9,0.5423]
[1728810665558,11.15257566,2467.0,2466.9,0.5423]
[1728810667663,14.33326867,2467.0,2466.9,0.5423]
[1728810668962,11.12546867,2467.0,2466.9,0.5423]
[1728810669163,14.33351836,2467.0,2466.9,0.5423]
[1728810671660,14.33351836,2467.0,2466.8,0.8145]
[1728810671661,23.08554315,2467.0,2466.8,0.4176]
[1728810671966,23.08554315,2467.0,2466.4,1.31]
[1728810671967,0.40549,2466.5,2466.4,1.31]
[1728810672158,4.36595299,2466.5,2466.4,1.31]
[1728810672564,6.54196834,2466.5,2466.4,1.31]
[1728810672862,0.40551,2466.4,2466.3,0.8068]
[1728810673062,2.3059696,2466.4,2466.3,0.8068]
[1728810673258,6.92606926,2466.4,2466.3,0.8068]
[1728810673766,6.92584699,2466.4,2466.3,0.8068]
[1728810674653,4.42578313,2466.4,2466.3,0.8068]
[1728810676764,4.42578313,2466.4,2466.3,1.1995]
[1728810678465,4.22288976,2466.4,2466.3,1.1995]
[1728810678656,4.42577842,2466.4,2466.3,1.1995]
[1728810681461,2.30599866,2466.4,2466.3,1.1995]
[1728810681657,4.42577842,2466.4,2466.3,1.1995]
[1728810682469,2.30599866,2466.4,2466.3,1.1995]
[1728810683274,2.3059986,2466.4,2466.3,1.1995]
[1728810683469,4.42577836,2466.4,2466.3,1.1995]
[1728810684572,4.42577836,2466.4,2466.2,1.31]
[1728810684573,0.40554,2466.2,2466.0,1.31]
[1728810684772,1.99564928,2466.2,2466.1,0.4147]
[1728810685076,3.50855163,2466.2,2466.1,0.4147]
[1728810685268,1.91844235,2466.2,2466.1,0.4147]
[1728810685466,3.50824961,2466.2,2466.1,0.4147]
[1728810685669,1.91844235,2466.2,2466.1,0.4147]
[1728810686071,1.91844949,2466.2,2466.1,0.4147]
[1728810687379,3.50796642,2466.2,2466.1,0.4147]
[1728810688477,5.12624949,2466.2,2466.1,0.4147]
[1728810688665,7.24639519,2466.2,2466.1,0.4147]
[1728810690968,7.24639519,2466.2,2465.6,3.61343]
[1728810690969,7.37117248,2466.2,2465.6,3.2078]
[1728810691168,7.37117248,2466.2,2465.7,2.1446]
[1728810691169,1.05887308,2465.8,2465.7,2.1446]
[1728810691575,1.05887308,2465.8,2465.7,6.1998]
[1728810692375,1.05887308,2465.8,2465.7,6.6237]
[1728810693492,1.31,2465.9,2465.7,6.6237]
[1728810693493,2.36887308,2465.9,2465.7,6.6237]
[1728810693688,2.36887308,2465.9,2465.7,2.5685]
[1728810694689,1.31,2465.8,2465.7,2.5685]
[1728810695191,2.77446308,2465.9,2465.7,6.6237]
[1728810695388,2.77446308,2465.9,2465.7,2.5685]
[1728810696091,2.36887308,2465.9,2465.7,2.5685]
[1728810696796,2.77446308,2465.9,2465.7,2.5685]
[1728810697100,1.7156,2465.8,2465.7,2.5685]
[1728810697390,1.7258,2465.8,2465.7,2.5685]
[1728810697595,1.7258,2465.8,2465.7,6.6237]
[1728810699397,1.7258,2465.8,2465.7,2.5685]
[1728810700188,1.7258,2465.8,2465.7,1.2585]
[1728810700396,2.1314,2465.8,2465.7,1.2585]
[1728810700587,1.7258,2465.8,2465.7,1.2585]
[1728810701189,0.40564,2465.7,2465.2,0.40569]
[1728810701393,3.61344,2465.6,2465.3,1.2401]
[1728810701590,3.2078,2465.6,2465.3,1.2401]
[1728810701791,1.31,2465.4,2465.3,1.2401]
[1728810703298,1.71567,2465.4,2465.3,1.2401]
[1728810703487,1.71567,2465.4,2465.3,0.4065]
[1728810703689,1.71567,2465.4,2465.2,1.31]
[1728810703884,1.45517308,2465.5,2465.1,4.4401]
[1728810703885,1.71569,2465.3,2465.1,4.4401]
[1728810704092,1.7157,2465.2,2465.1,0.8125]
[1728810704297,2.1218,2465.2,2465.1,0.8125]
[1728810705499,2.1218,2465.2,2464.9,1.7321]
[1728810705701,1.31,2465.0,2464.9,2.1431]
[1728810718007,1.71574,2465.0,2464.8,3.6138]
[1728810718203,1.7118,2464.9,2464.8,3.6138]
[1728810718401,1.7118,2464.9,2464.8,4.9238]
[1728810719114,2.11755,2464.9,2464.8,3.6138]
[1728810720107,2.11755,2464.9,2464.8,3.2078]
[1728810720299,2.52655,2464.9,2464.8,3.2078]
[1728810724001,2.1208,2464.9,2464.8,3.2078]
[1728810724607,2.1208,2464.9,2464.6,4.3946]
[1728810724808,1.31,2464.7,2464.6,4.3946]
[1728810725308,1.31,2464.7,2464.6,8.4522]
[1728810727819,1.31,2464.7,2464.6,5.2444]
[1728810728013,1.31,2464.7,2464.6,8.4522]
[1728810730712,0.4018,2464.9,2464.6,9.7622]
[1728810730912,4.79076458,2465.2,2464.6,9.7622]
[1728810730913,1.31,2465.0,2464.8,1.31]
[1728810731217,0.40573,2465.1,2464.9,0.3974]
[1728810731414,1.31,2465.0,2464.9,0.3974]
[1728810732313,1.31,2465.0,2464.6,4.0007]
[1728810732314,0.40576,2464.9,2464.6,4.0007]
[1728810732510,1.31,2464.7,2464.6,4.0007]
[1728810733114,1.31,2464.7,2464.6,8.4641]
[1728810733511,1.31,2464.7,2464.6,8.0583]
[1728810734016,1.31,2464.7,2464.6,4.0007]
[1728810735110,1.31,2464.7,2464.6,3.6164]
[1728810745026,1.31,2464.7,2464.6,0.4086]
[1728810746430,2.36530972,2464.7,2464.6,0.4086]
[1728810746723,1.31,2464.7,2464.6,0.4086]
[1728810746921,2.36530972,2464.7,2464.6,0.4086]
[1728810749224,2.36530972,2464.7,2464.6,0.63174145]
[1728810749430,2.89296458,2464.7,2464.6,0.4086]
[1728810749631,2.89296458,2464.7,2464.6,0.63174183]
[1728810749932,1.31,2464.7,2464.6,0.63174183]
[1728810750418,2.36978184,2464.7,2464.6,1.69098986]
[1728810750733,2.36976754,2464.7,2464.6,1.69098986]
[1728810751028,1.31,2464.7,2464.6,1.69098986]
[1728810751926,1.31,2464.7,2464.6,1.81787207]
[1728810752226,2.36983016,2464.7,2464.6,1.81787207]
[1728810753019,2.36983016,2464.7,2464.6,1.81790169]
[1728810754027,2.36983016,2464.7,2464.6,2.85747709]
[1728810756823,2.36983016,2464.7,2464.6,1.81795183]
[1728810757022,2.37011295,2464.7,2464.6,2.85772032]
[1728810757218,2.37012592,2464.7,2464.6,1.79847229]
[1728810757425,2.37012592,2464.7,2464.6,3.38734434]
[1728810759418,1.31,2464.7,2464.6,3.74462192]
[1728810759623,1.31,2464.7,2464.6,3.74462013]
[1728810760030,2.89296458,2464.7,2464.6,3.74462131]
[1728810760627,2.89296458,2464.7,2464.6,3.61774037]
[1728810760833,2.89296458,2464.7,2464.6,3.74461923]
[1728810763238,2.89296458,2464.7,2464.6,3.94762706]
[1728810763433,3.09597136,2464.7,2464.6,3.94762706]
[1728810764742,3.09597136,2464.7,2464.6,3.94800639]
[1728810766539,3.09597136,2464.7,2464.6,2.35913434]
[1728810767037,3.09597136,2464.7,2464.6,3.95697236]
[1728810768335,3.09597136,2464.7,2464.6,3.95698203]
[1728810771140,3.09597107,2464.7,2464.6,3.95787536]
[1728810772044,3.09597107,2464.7,2464.6,3.62798917]
[1728810772241,3.09597107,2464.7,2464.6,3.95787458]
[1728810772543,3.09597107,2464.7,2464.6,3.62800015]
[1728810772734,3.09597107,2464.7,2464.6,3.95788805]
[1728810775845,3.09597107,2464.7,2464.6,3.95788906]
[1728810776046,3.09597314,2464.7,2464.6,3.95790176]
[1728810778143,1.51300856,2464.7,2464.6,2.36006374]
[1728810779348,0.20300856,2464.7,2464.6,2.36006374]
[1728810782251,0.20300856,2464.7,2464.6,1.44927452]
[1728810782456,0.20300856,2464.7,2464.6,2.36020724]
[1728810782759,1.59188269,2464.7,2464.6,10.2521033]
[1728810783244,1.5919678,2464.8,2464.7,0.40578]
[1728810783449,0.20299612,2464.8,2464.7,5.26539379]
[1728810783649,1.59183979,2464.8,2464.7,7.72498724]
[1728810783860,1.79483591,2464.8,2464.7,7.72498724]
[1728810784060,1.79483371,2464.8,2464.7,7.72506186]
[1728810785554,1.59183979,2464.8,2464.7,7.72506186]
[1728810785952,1.59183979,2464.8,2464.7,7.14401722]
[1728810787470,1.59183979,2464.8,2464.7,6.81412914]
[1728810788172,1.59183979,2464.8,2464.7,3.66728003]
[1728810788958,1.59183979,2464.8,2464.7,2.88943544]
[1728810789168,1.59183979,2464.8,2464.7,2.76256482]
[1728810790369,1.59183979,2464.8,2464.7,3.67329912]
[1728810792664,1.59183979,2464.8,2464.7,5.27066418]
[1728810793068,1.59183979,2464.8,2464.7,8.47846418]
[1728810793372,1.59183979,2464.8,2464.7,8.12096257]
[1728810793566,1.59183979,2464.8,2464.7,8.47827049]
[1728810793762,1.59183979,2464.8,2464.7,6.67791011]
[1728810793961,1.59183979,2464.8,2464.7,6.45453347]
[1728810794159,1.59183979,2464.8,2464.7,6.88088709]
[1728810794776,1.59183979,2464.8,2464.7,8.47821792]
[1728810795864,1.59183979,2464.8,2464.7,6.88088709]
[1728810796064,1.59183979,2464.8,2464.7,6.8808877]
[1728810797159,1.59183979,2464.8,2464.7,7.56758302]
[1728810797364,1.59183979,2464.8,2464.7,8.27523359]
[1728810797567,1.59183979,2464.8,2464.7,8.4782266]
[1728810798171,1.59183979,2464.8,2464.7,8.47824118]
[1728810798675,1.59183979,2464.8,2464.7,8.27524817]
[1728810799567,1.59183979,2464.8,2464.7,8.47824125]
[1728810800872,1.59183979,2464.8,2464.7,8.14835936]
[1728810801073,1.59183979,2464.8,2464.7,8.47822367]
[1728810801471,1.59183979,2464.8,2464.7,6.88087968]
[1728810801671,1.59183979,2464.8,2464.7,8.47820961]
[1728810802974,1.59183979,2464.8,2464.7,8.48323799]
[1728810804277,1.59183979,2464.8,2464.7,8.48322097]
[1728810804576,1.59183979,2464.8,2464.7,6.88589401]
[1728810805071,1.59183979,2464.8,2464.7,5.27540577]
[1728810805272,1.59183979,2464.8,2464.7,8.48320577]
[1728810806469,1.59183979,2464.8,2464.7,8.48320118]
[1728810807174,1.99133979,2464.8,2464.7,8.48320118]
[1728810807877,1.99133979,2464.8,2464.7,8.48319906]
[1728810808077,1.99133979,2464.8,2464.7,8.15333739]
[1728810808278,1.99133979,2464.8,2464.7,8.48319914]
[1728810808575,1.99133979,2464.8,2464.7,8.28020859]
[1728810808781,1.99133979,2464.8,2464.7,8.48320251]
[1728810809282,1.99133979,2464.8,2464.7,8.48320493]
[1728810811784,1.99133979,2464.8,2464.7,7.57258704]
[1728810811982,1.99133979,2464.8,2464.7,8.48321045]
[1728810814082,1.99133979,2464.8,2464.7,5.27541045]
[1728810814385,1.99133979,2464.8,2464.7,8.48321045]
[1728810815482,1.99133979,2464.8,2464.7,8.2812566]
[1728810815681,1.99133979,2464.8,2464.7,8.48425077]
[1728810817379,1.99133979,2464.8,2464.7,8.48459922]
[1728810817578,1.99133979,2464.8,2464.7,6.88707555]
[1728810817979,1.99133979,2464.8,2464.7,3.67927555]
[1728810818485,1.99133979,2464.8,2464.7,6.88707555]
[1728810819080,1.99133979,2464.8,2464.7,6.88709841]
[1728810821984,1.99133979,2464.8,2464.7,6.88721793]
[1728810822789,1.99133979,2464.8,2464.7,6.8873002]
[1728810822987,1.99133979,2464.8,2464.7,6.68430713]
[1728810823290,1.99133979,2464.8,2464.7,6.88730034]
[1728810824084,2.19433299,2464.8,2464.7,6.88730034]
[1728810824986,2.19433299,2464.8,2464.7,5.17158154]
[1728810825496,2.19433299,2464.8,2464.7,5.1715892]
[1728810826288,2.19433299,2464.8,2464.7,4.84171757]
[1728810826486,2.19433299,2464.8,2464.7,1.83697037]
[1728810826681,2.19433794,2464.8,2464.7,4.25998811]
[1728810826993,2.19433794,2464.8,2464.7,5.29875858]
[1728810827289,0.60249815,2464.8,2464.7,5.29875858]
[1728810828084,0.60249815,2464.8,2464.7,6.60875858]
[1728810828685,0.60249815,2464.8,2464.7,7.01453858]
[1728810829287,0.60249815,2464.8,2464.7,6.60875858]
[1728810829990,0.60249815,2464.8,2464.7,7.01453858]
[1728810830187,0.60249815,2464.8,2464.7,6.68478165]
[1728810830398,0.60249815,2464.8,2464.7,7.01465353]
[1728810830698,0.60249815,2464.8,2464.7,6.88778031]
[1728810830989,0.60249815,2464.8,2464.7,3.67998031]
[1728810831691,0.60249815,2464.8,2464.7,6.88778031]
[1728810832081,0.60249815,2464.8,2464.7,3.67998031]
[1728810832285,0.60249815,2464.8,2464.7,6.88778031]
[1728810832990,0.60249815,2464.8,2464.7,3.67998031]
[1728810833294,0.60249815,2464.8,2464.7,6.88778031]
[1728810833689,0.3995,2464.8,2464.7,5.8355922]
[1728810833982,0.60249847,2464.8,2464.7,6.88792917]
[1728810834593,0.60249847,2464.8,2464.7,3.68012917]
[1728810834787,0.60249847,2464.8,2464.7,6.88792917]
[1728810836498,0.60249821,2464.8,2464.7,6.88792404]
[1728810837096,0.60249821,2464.8,2464.7,5.90001907]
[1728810837295,0.60249821,2464.8,2464.7,6.48213782]
[1728810839895,0.60249821,2464.8,2464.7,6.88791782]
[1728810840496,0.60249821,2464.8,2464.7,3.68011782]
[1728810841195,0.60249821,2464.8,2464.7,6.88791782]
[1728810842995,0.60249821,2464.8,2464.7,7.39541449]
[1728810843697,0.60249821,2464.8,2464.7,7.06554204]
[1728810843903,0.60249821,2464.8,2464.7,6.76104197]
[1728810844099,0.60249821,2464.8,2464.7,7.3954126]
[1728810844306,0.60249821,2464.8,2464.7,4.1876126]
[1728810844503,0.60249821,2464.8,2464.7,7.3954126]
[1728810845601,0.60249821,2464.8,2464.7,4.1876126]
[1728810845805,0.60249821,2464.8,2464.7,7.3954126]
[1728810847093,0.60249821,2464.8,2464.7,4.1876126]
[1728810847297,0.60249821,2464.8,2464.7,7.3954126]
[1728810847498,0.60249821,2464.8,2464.7,7.39541399]
[1728810847698,0.60249821,2464.8,2464.7,3.09799928]
[1728810848004,0.60249821,2464.8,2464.7,4.18761392]
[1728810848203,0.60249821,2464.8,2464.7,7.39541392]
[1728810849302,0.60249861,2464.8,2464.7,7.39540981]
[1728810849598,1.9916446,2464.8,2464.7,9.51390587]
[1728810849809,0.60249861,2464.8,2464.7,9.51390587]
[1728810850503,0.60249861,2464.8,2464.7,8.09441851]
[1728810851602,0.60249861,2464.8,2464.7,9.00646054]
[1728810852003,0.60249861,2464.8,2464.7,9.51395008]
[1728810852203,0.60249861,2464.8,2464.7,9.38707809]
[1728810852407,0.60249861,2464.8,2464.7,9.5139507]
[1728810853799,0.60249678,2464.8,2464.7,6.30616138]
[1728810854000,0.60249678,2464.8,2464.7,6.30616237]
[1728810854307,0.60249678,2464.8,2464.7,9.51396237]
[1728810855009,0.60249678,2464.8,2464.7,6.30616237]
[1728810855209,0.60249678,2464.8,2464.7,9.51396237]
[1728810856008,0.60249678,2464.8,2464.7,9.00794162]
[1728810856212,0.60249678,2464.8,2464.7,9.31243693]
[1728810856403,0.60249678,2464.8,2464.7,9.51543375]
[1728810858307,0.60249678,2464.8,2464.7,6.30763375]
[1728810858511,0.60249678,2464.8,2464.7,9.51543375]
[1728810859617,0.60249678,2464.8,2464.7,8.09442919]
[1728810859811,0.60249678,2464.8,2464.7,9.51543756]
[1728810861914,0.60249678,2464.8,2464.7,9.90273756]
[1728810862611,0.60249678,2464.8,2464.7,9.31909028]
[1728810862815,0.60249678,2464.8,2464.7,6.69494607]
[1728810863014,0.60249678,2464.8,2464.7,9.90274607]
[1728810863317,0.60249678,2464.8,2464.7,8.48172919]
[1728810863519,0.60249678,2464.8,2464.7,9.39525294]
[1728810863719,0.60249678,2464.8,2464.7,9.90274448]
[1728810864806,0.60249678,2464.8,2464.7,6.69494448]
[1728810865415,0.60249678,2464.8,2464.7,9.90274448]
[1728810866312,0.60249678,2464.8,2464.7,6.69494448]
[1728810866519,0.60249678,2464.8,2464.7,9.90274448]
[1728810866917,0.60249678,2464.8,2464.7,9.77587125]
[1728810867120,0.60249678,2464.8,2464.7,5.78142073]
[1728810867316,0.60249678,2464.8,2464.7,9.39525669]
[1728810867513,0.60249678,2464.8,2464.7,9.90274727]
[1728810868220,0.60249619,2464.8,2464.7,6.69499264]
[1728810868722,0.60249619,2464.8,2464.7,9.90279264]
[1728810868914,0.60249619,2464.8,2464.7,6.69499264]
[1728810869421,0.60249619,2464.8,2464.7,9.90279264]
[1728810870014,0.60249619,2464.8,2464.7,6.69499264]
[1728810870211,0.60249619,2464.8,2464.7,9.90279264]
[1728810871328,0.60249619,2464.8,2464.7,6.69499264]
[1728810871623,0.60249619,2464.8,2464.7,9.90279264]
[1728810872225,1.9917789,2464.8,2464.7,9.90279264]
[1728810872424,2.19477509,2464.8,2464.7,9.90279264]
[1728810873024,2.19477116,2464.8,2464.7,9.90277396]
[1728810873425,0.60249226,2464.8,2464.7,9.90277396]
[1728810873624,0.60249226,2464.8,2464.7,6.69497396]
[1728810873925,0.60249226,2464.8,2464.7,9.90277396]